Workbook

Sheet Estimated Tax
A1: Estimated Tax Calculator In One Minute | I1: Old
C3: March Basic | I3: =IFERROR(IF(D19>500000,250000,0)*5%+IF(D19>1000000,500000,IF(D19>500000,D19-500000,0))*20%+IF(D19>1000000,(D19-1000000),0)*30%,"") -> 0
C4: 45100
B6: DA Rate | C6: HRA Rate | D6: Total rate | E6: DA Areear | F6: Surrender | G6: Bonus | I6: =IFERROR(ROUND(I3*0.04,-1),"") -> 0
B7: 17% | C7: 8% | D7: =SUM(B7:C7) -> 25% | E7: 0 | F7: 0 | G7: 0
B9: Auto Calculation | F9: Tax as per new Regime
B10: March Basic | D10: =C4 -> 45100 | F10: Total | G10: =D20 -> 32812
B11: March Gross Salary | D11: =ROUND(D10*D7+D10,0) -> 56375 | F11: Monthly | G11: =ROUND(G10/12,0) -> 2734
B12: July Basic | D12: =MROUND(D10*1.03,100) -> 46500
B13: July Gross Salary | D13: =ROUND(D12*D7+D12,0) -> 58125 | F13: Tax as per old Regime
B14: Home Loan Interest | F14: Total | G14: =D21 -> 0
B15: Annual Income | D15: =IFERROR(ROUND(D11*4+D13*8+E7+F7+G7-D14,0),"") -> 690500 | F15: Monthly | G15: =ROUND(G14/12,0) -> 0
B16: Satandard Deduction | D16: 50000
B17: Deduction Under 80C | D17: 150000
B18: Deduction Above 150000
B19: Net Taxable Income | D19: =IFERROR(ROUND(D15-D16-D17-D18,-1),"") -> 490500
B20: Tax as per new Regime | D20: =IFERROR(ROUND(Calculaton!E30,-1)*1.04,"") -> 32812
B21: Tax as per old Regime | D21: =IFERROR(SUM(I3:I6),"") -> 0

Sheet Calculaton (hidden)
I1: =Calculaton!L12 -> 31550
G3: Senior Citizen (60 Yrs or more)
E4: Senior Citizen (60 Yrs or more) | G4: Senior Citizen (80 Yrs or more)
G5: Other
B6: A | C6: Enter your Gross Income without any deduction/exemption | E6: ='Estimated Tax'!D15 -> 690,500
B7: B | C7: Less: Select Allowances/Exemptions/Deductions/Set Off you are normally entitled to | E7: Fill estimated amount hereunder | I7: Txable Income old | J7: =E27 -> 690500 | Q7: Old Scheme | R7: Rebate | S7: Net Tax | T7: New Scheme | U7: Rebate | V7: Net Tax
B8: 1 | I8: Taxable income new | J8: =E6-(E11+E17) -> 690,500 | N8: Senior Citizen (60 Yrs or more) | Q8: =J11 -> 48100 | R8: =IF($J$7>500000,0,Q8) -> 0 | S8: =Q8-R8 -> 48100 | T8: =J12 -> 31550 | U8: =IF($J$8>500000,0,T8) -> 0 | V8: =T8-U8 -> 31550
B9: 2 | N9: Senior Citizen (80 Yrs or more) | Q9: =K11 -> 38100 | R9: 0 | S9: 38100 | T9: =K12 -> 31550 | U9: 0 | V9: 31550
B10: 3 | J10: Senior Citizen | K10: Super Senior | L10: Others | N10: Other | Q10: =L11 -> 50600 | R10: 0 | S10: 50600 | T10: =L12 -> 31550 | U10: 0 | V10: 31550
B11: =B10+1 -> 4 | I11: Tax as per old scheme | J11: =SUMPRODUCT(--(J7>(J30:J32)), (J7-(J30:J32)), (L31:L33)) -> 48100 | K11: =SUMPRODUCT(--(J7>(J38:J39)), (J7-(J38:J39)), (L39:L40)) -> 38100 | L11: =SUMPRODUCT(--(J7>(J20:J22)), (J7-(J20:J22)), (L21:L23)) -> 50600
B12: 5 | I12: Tax as per new scheme | J12: =SUMPRODUCT(--(J8>(O20:O25)), (J8-(O20:O25)), (Q21:Q26)) -> 31550 | K12: =SUMPRODUCT(--(J8>(O20:O25)), (J8-(O20:O25)), (Q21:Q26)) -> 31550 | L12: =SUMPRODUCT(--(J8>(O20:O25)), (J8-(O20:O25)), (Q21:Q26)) -> 31550 | N12: Final Tax based on category Selection | Q12: Old Scheme | R12: New Scheme
B13: 6 | N13: =E4 -> Senior Citizen (60 Yrs or more) | Q13: =VLOOKUP(E4,N8:S10,6,0) -> 48100 | R13: =VLOOKUP(E4,N8:V10,9,0) -> 31550
B14: 7
B15: 8
B16: 9
B17: 10
B18: 11 | I18: Income tax slab old | N18: Income tax slab new
B19: 12 | I19: From | J19: To | K19: Income Tax Rate | L19: Differential Rate | N19: From | O19: To | P19: Income Tax Rate | Q19: Differential Rate
B20: 13 | I20: 0 | J20: 250000 | K20: 0.00 | N20: 0 | O20: 250000 | P20: 0.00
B21: 14 | I21: 250001 | J21: 500000 | K21: 0.05 | L21: =K21-K20 -> 0.05 | N21: 250001 | O21: 500000 | P21: 0.05 | Q21: =P21-P20 -> 0.05
B22: 15 | I22: 500001 | J22: 1000000 | K22: 0.20 | L22: 0.15 | N22: 500001 | O22: 750000 | P22: 0.10 | Q22: 0.05
B23: 16 | I23: above 1000000/- | K23: 0.30 | L23: 0.10 | N23: 750001 | O23: 1000000 | P23: 0.15 | Q23: 0.05
B24: 17 | N24: 1000001 | O24: 1250000 | P24: 0.20 | Q24: 0.05
B25: 18 | N25: 1250001 | O25: 1500000 | P25: 0.25 | Q25: 0.05
B26: 19 | I26: Income Tax Slab for Senior Citizens AY 2016-17 and AY 2015-16 | N26: 1500001 and above | P26: 0.30 | Q26: 0.05
B27: C | C27: Total Income (A-B) | E27: =E6-SUM(E8:E26) -> 690,500 | I27: From | J27: To | K27: Income Tax Rate | L27: Differential Rate
C29: Tax under Old Regime (after Section 87A rebate) | E29: =Q13 -> 48,100
C30: Tax under New Optinal Regime (after Section 87A rebate) | E30: =R13 -> 31,550 | I30: 0 | J30: 300000 | K30: 0.00
B31: # only following allowances are exempt to the Individual or HUF exercising Option of New Simplified Personal Income Tax Regime: (a) Transport Allowance granted to a divyang employee to meet expenditure for the purpose of commuting between place of residence and place of duty (b) Conveyance Allowance granted to meet the expenditure on conveyance in performance of duties of an office; (c) Any Allowance granted to meet the cost of travel on tour or on transfer; (d) Daily Allowance to meet the ordinary daily charges incurred by employee for absence from his normal place of duty | I31: 300001 | J31: 500000 | K31: 0.05 | L31: =K31-K30 -> 0.05
I32: 500001 | J32: 1000000 | K32: 0.20 | L32: 0.15
I33: above 1000000/- | K33: 0.30 | L33: 0.10
I36: Income Tax Slab for Senior Citizens AY 2016-17 and AY 2015-16
I37: From | J37: To | K37: Income Tax Rate | L37: Differential Rate
I38: 0 | J38: 500000 | K38: 0.00
I39: 500001 | J39: 1000000 | K39: 0.20 | L39: =K39-K38 -> 0.20
I40: above 1000000/- | K40: 0.30 | L40: 0.10
